[Event "XLIX Sevilla Open 2024"]
[Site "?"]
[Date "2024.01.15"]
[Round "4.7"]
[White "Ouellet, Maili-Jade"]
[Black "Ceres, Dragos"]
[Result "1-0"]
[ECO "E71"]
[WhiteElo "2222"]
[BlackElo "2438"]
[Annotator "TA"]
[PlyCount "123"]
[EventDate "2024.01.12"]
[EventType "swiss"]
[SourceTitle "playchess.com"]
[Source "ChessBase"]
[SourceQuality "1"]
[TimeControl "5400+30"]

{[%evp 13,123,39,21,37,34,47,51,48,89,98,102,96,100,100,127,95,137,111,115,129,196,207,189,204,204,194,233,227,237,226,229,235,362,283,414,423,462,423,734,511,931,937,1050,1034,1030,1021,925,638,625,505,575,575,575,575,649,628,964,942,739,664,791,741,874,787,716,0,631,542,573,565,533,524,547,539,564,559,600,580,577,543,637,583,638,644,639,614,606,610,571,464,592,607,685,676,649,653,668,631,611,600,882,699,645,645,29983,29984,29986,29985,29988,29989,29991,29992]} 1. d4 {[%emt 0:00:02]} Nf6 {[%emt 0:10:37]} 2. c4 {[%emt 0:00:06]} g6 {[%emt 0:00:38]} 3. Nc3 {[%emt 0:00:06]} Bg7 {[%emt 0:00:04]} 4. e4 {[%emt 0:00:10]} d6 {[%emt 0:00:05]} 5. h3 {[%emt 0:00:12]} O-O {[%emt 0:01:03]} 6. Be3 {[%emt 0:00:11]} e5 {[%emt 0:02:19]} 7. d5 {[%emt 0:00:10]} Na6 {[%emt 0:00:07] 7...Na6 scores better than 7...a5.} 8. g4 {[%emt 0:00:18] E71: King's Indian: 4 e4 d6 5 h3.} Nc5 {[%emt 0:04:04]} 9. f3 {[%emt 0:00:12]} a5 {[%emt 0:01:36]} 10. Qd2 {[%emt 0:01:36] White is slightly better.} Nfd7 {[%emt 0:10:55]} 11. h4 {[%emt 0:04:46][%cal Bh3h4,Bh4h5][%mdl 32]} f5 {[%emt 0:00:06]} 12. gxf5 {[%emt 0:08:45]} gxf5 {[%emt 0:00:06]} 13. exf5 {[%emt 0:05:47]} Rxf5 {[%emt 0:02:27][%cal Oe5e4]} 14. O-O-O {[%emt 0:12:08] [#]} Qf8 $146 {[%emt 0:09:10]} ({Predecessor:} 14... a4 15. Nh3 Kh8 16. Ng5 Qf8 17. Rg1 Nb6 18. Bxc5 dxc5 19. Bd3 Rf4 20. Nxh7 Qe7 {1-0 Gupta,A (2606)-Iskandarov,M (2601) Sharjah Masters 5th 2022 (4)}) 15. h5 {[%emt 0:07:21]} h6 {[%emt 0:03:44]} 16. Bh3 {[%emt 0:01:25]} Rf4 {[%emt 0:04:32]} 17. Bxf4 $18 {[%emt 0:19:36]} exf4 {[%emt 0:00:20]} 18. Bxd7 {[%emt 0:00:26]} Bxd7 {[%emt 0:00:06]} 19. Nge2 {[%emt 0:00:23]} Be5 {[%emt 0:07:04]} 20. Rhg1+ {[%emt 0:01:22]} Kh8 {[%emt 0:03:02]} 21. Nd4 {[%emt 0:01:32]} a4 {[%emt 0:04:34]} 22. Rg2 {[%emt 0:05:42]} a3 {[%emt 0:04:04]} (22... Bf6 $142 23. Ncb5 (23. Qxf4 $2 Bg5 $19) 23... Rc8) 23. b3 {[%emt 0:02:13] And now Rdg1 would win.} Re8 {[%emt 0:03:00]} (23... c6 $142 24. Rdg1 cxd5 25. cxd5 Rc8) 24. Rdg1 {[%emt 0:04:07]} Re7 {[%emt 0:08:17]} 25. Nce2 {[%emt 0:05:42]} Bg7 {[%emt 0:02:15]} (25... Kh7 $142 26. b4 Na6 27. Qd3+ Kh8 28. Qxa3 Bg7) 26. Kd1 {[%emt 0:02:39]} (26. Nxf4 $2 Qxf4 27. Qxf4 Nd3+ 28. Kd1 Nxf4 $19) 26... Be8 {[%emt 0:05:19]} (26... Kh7 $142 27. Nxf4 (27. Qxf4 Qxf4 28. Rxg7+ Rxg7 $16) 27... Bf5) 27. Nxf4 {[%emt 0:02:55]} ({Weaker is} 27. Qxf4 Qxf4 28. Nxf4 Bxd4 $17) 27... Qf6 {[%emt 0:00:55]} 28. Ng6+ {[%emt 0:03:36]} Bxg6 {[%emt 0:00:17]} 29. Rxg6 {[%emt 0:00:01]} Qf8 {[%emt 0:00:53]} 30. Kc1 {[%emt 0:01:19][%cal Bd1c1,Bc1c2,Bc2d2][%mdl 32]} Qf4 {[%emt 0:02:40]} 31. R6g4 {[%emt 0:02:52]} Nd3+ {[%emt 0:06:29]} 32. Kc2 {[%emt 0:02:07]} Qxd2+ {[%emt 0:00:06]} 33. Kxd2 {[%emt 0:00:01]} Bxd4 {[%emt 0:00:08]} 34. Rxd4 {[%emt 0:00:21][%mdl 4096] Endgame KRR-KRN} Nb4 {[%emt 0:00:09]} 35. Rdg4 {[%emt 0:02:37]} Kh7 {[%emt 0:00:50]} 36. R4g2 {[%emt 0:01:02]} c6 {[%emt 0:00:32]} 37. dxc6 {[%emt 0:00:25]} bxc6 {[%emt 0:00:03]} 38. Re2 {[%emt 0:01:35]} Rf7 {[%emt 0:00:31]} 39. Reg2 $2 {[%emt 0:01:50] [#]} (39. Re6 $18) 39... Ra7 $2 {[%emt 0:00:22][%mdl 8192]} (39... Re7 $11 40. f4 Na6) 40. Kd1 {[%emt 0:01:10]} d5 {[%emt 0:00:56]} 41. cxd5 {[%emt 0:00:15]} Nxd5 {[%emt 0:00:10]} 42. Kc1 {[%emt 0:01:34]} Re7 {[%emt 0:00:46]} 43. Rg4 {[%emt 0:00:37] Repels Nf4} c5 {[%emt 0:01:06]} 44. Re4 {[%emt 0:00:35]} Rf7 {[%emt 0:00:04]} 45. Re5 {[%emt 0:00:24]} Nb4 {[%emt 0:00:30] [#] White must now prevent ...Nd3+.} 46. Kd2 {[%emt 0:00:19] Repels Nd3} ({Not} 46. Rxc5 Nd3+ 47. Kc2 Nxc5 $17) 46... Rc7 {[%emt 0:01:26]} 47. f4 {[%emt 0:00:34][%cal Bf3f4,Bf4f5][%mdl 32]} Nxa2 {[%emt 0:00:41]} 48. f5 {[%emt 0:00:41]} Rd7+ {[%emt 0:00:37]} 49. Ke3 {[%emt 0:00:20]} Nb4 {[%emt 0:00:05]} 50. Rxc5 {[%emt 0:00:23]} a2 {[%emt 0:01:28]} 51. Ke4 {[%emt 0:00:28]} Re7+ {[%emt 0:01:02]} 52. Kd4 {[%emt 0:00:33]} Ra7 {[%emt 0:01:33]} 53. Ra1 {[%emt 0:00:08]} Kg7 {[%emt 0:00:31]} 54. Kc3 {[%emt 0:01:14]} Rb7 {[%emt 0:00:02]} 55. Rc4 {[%emt 0:00:28]} Nd5+ {[%emt 0:00:09]} 56. Kb2 {[%emt 0:00:19]} Nb4 {[%emt 0:01:27]} 57. Rf1 {[%emt 0:00:28]} Kf6 {[%emt 0:00:21]} 58. Re4 {[%emt 0:00:23]} Kg5 {[%emt 0:02:24]} 59. f6 {[%emt 0:00:27] White mates.} Nd3+ {[%emt 0:00:40]} 60. Kxa2 {[%emt 0:00:36]} Ra7+ {[%emt 0:00:32]} 61. Kb1 {[%emt 0:00:11]} Rf7 {[%emt 0:00:28]} 62. Re7 {[%emt 0:00:13] Black got outplayed after the opening.   Weighted Error Value: White=0.52/Black=0.44} 1-0

[Event "XLIX Sevilla Open 2024"]
[Site "?"]
[Date "2024.01.15"]
[Round "4.8"]
[White "Bilych, Olexiy"]
[Black "Goluch, Piotr"]
[Result "1-0"]
[ECO "B12"]
[WhiteElo "2427"]
[BlackElo "2313"]
[Annotator "TA"]
[PlyCount "89"]
[EventDate "2024.01.12"]
[EventType "swiss"]
[SourceTitle "playchess.com"]
[Source "ChessBase"]
[SourceQuality "1"]
[TimeControl "5400+30"]

{[%evp 9,89,24,49,49,49,41,67,65,83,76,86,85,85,85,89,83,96,76,90,84,83,76,86,74,75,73,106,106,110,80,81,72,82,73,219,234,216,220,231,206,213,128,152,160,157,133,162,157,162,154,161,159,157,131,125,53,277,277,381,372,450,381,627,605,675,665,661,649,826,812,844,455,522,483,488,480,418,417,760,792,1458,1077]} 1. e4 {[%emt 0:00:02]} c6 {[%emt 0:00:07]} 2. d4 {[%emt 0:00:05]} d5 {[%emt 0:00:04]} 3. e5 {[%emt 0:00:05]} Bf5 {[%emt 0:00:23]} 4. Nf3 {[%emt 0:00:07]} e6 {[%emt 0:00:12]} 5. Be2 {[%emt 0:00:06]} Bb4+ {[%emt 0:00:03]} 6. c3 {[%emt 0:00:06] B12: Caro-Kann: Advance Variation.} Ba5 {[%emt 0:00:05]} 7. Qb3 {[%emt 0:00:06]} Qc8 {[%emt 0:01:36]} 8. Nh4 {[%emt 0:00:07] White is slightly better.} Bg6 {[%emt 0:05:26]} 9. O-O {[%emt 0:00:30]} Nd7 {[%emt 0:01:58] [#]} 10. Nd2 $146 {[%emt 0:01:02]} ({Predecessor:} 10. Be3 Bc7 11. Nd2 Ne7 12. f4 f6 13. Nxg6 hxg6 14. Nf3 Nf5 15. Bf2 Nf8 16. Bd3 {1-0 Hansen,M (2440)-Nielsen,T (1916) Copenhagen Challenge 2017 (9)}) 10... Bd8 {[%emt 0:01:03]} 11. Nxg6 {[%emt 0:00:06]} hxg6 {[%emt 0:00:04]} 12. Nf3 {[%emt 0:02:51]} Nh6 {[%emt 0:01:34]} 13. Qd1 {[%emt 0:02:09] White is more active.} a5 {[%emt 0:05:04]} 14. a4 {[%emt 0:00:13]} Nf5 {[%emt 0:00:52]} 15. Re1 {[%emt 0:03:41]} Be7 {[%emt 0:00:28]} 16. Bd3 {[%emt 0:00:17]} Qd8 {[%emt 0:07:00]} 17. g3 {[%emt 0:01:57]} Qb6 {[%emt 0:02:58]} 18. Kg2 {[%emt 0:07:46]} Nb8 {[%emt 0:03:21]} 19. Re2 {[%emt 0:09:47]} c5 {[%emt 0:03:55]} 20. dxc5 {[%emt 0:00:06]} Bxc5 {[%emt 0:00:10]} 21. b4 {[%emt 0:00:16]} axb4 {[%emt 0:03:03]} (21... Be7 $16) 22. cxb4 $18 {[%emt 0:00:04]} Be7 {[%emt 0:09:37]} (22... Qxb4 $2 23. Ba3 Qg4 24. Bxc5 $18) 23. a5 {[%emt 0:02:52]} Qd8 {[%emt 0:00:17]} (23... Bxb4 $2 24. axb6 Rxa1 25. Bb5+ Nd7 26. Rc2 $18) (23... Qxb4 $2 24. Ra4 Qc5 25. Rc2 $18) 24. Qa4+ {[%emt 0:07:32]} Nc6 {[%emt 0:04:13]} 25. Rc2 {[%emt 0:00:20] Threatens to win with Bb5.} O-O {[%emt 0:01:09]} 26. Bd2 {[%emt 0:00:04]} Nfd4 {[%emt 0:04:30]} 27. Nxd4 {[%emt 0:01:20]} Nxd4 {[%emt 0:00:03]} 28. Rcc1 {[%emt 0:00:48] Black must now prevent b5.} f6 {[%emt 0:02:07] [#]} 29. exf6 {[%emt 0:04:52]} Bxf6 {[%emt 0:00:05][%cal Od4f3]} 30. Ra2 {[%emt 0:07:34]} (30. Bxg6 Nf3 31. Bc3 Bxc3 32. Rxc3 Qf6 $11) 30... e5 {[%emt 0:11:46]} 31. Bxg6 {[%emt 0:00:37] Qd1 would be deadly.} Bg5 {[%emt 0:00:16] ...Qf6 is the strong threat.} 32. Bb1 {[%emt 0:18:20]} ({White should play} 32. Bh5 $16) 32... Rxf2+ $2 {[%emt 0:06:43]} 33. Kxf2 {[%emt 0:00:07]} Qf6+ {[%emt 0:00:04] [#]} 34. Kg1 $1 {[%emt 0:04:10][%cal Bf2g1,Bg1g2,Bg2h3][%mdl 32]} (34. Kg2 Qf3+ 35. Kh3 Qh5+ 36. Kg2 Qe2+ 37. Kh3 (37. Kh1 $2 {leads to mate.} Qf3+ 38. Kg1 Ne2#) 37... Qh5+ 38. Kg2 Qe2+ 39. Kh3 (39. Kh1 $2 Qf3+ 40. Kg1 Ne2#) 39... Qh5+ $11) 34... Nf3+ {[%emt 0:17:52]} 35. Kg2 {[%emt 0:00:16]} Nxd2 {[%emt 0:02:48]} (35... Bxd2 36. Qb3 Bxc1 37. Qxd5+ (37. Qxf3 Qxf3+ 38. Kxf3 Kf8 $14) 37... Kf8 38. Qc5+ Kg8) 36. Qd1 {[%emt 0:00:46]} e4 {[%emt 0:04:05]} 37. Rxd2 {[%emt 0:09:15]} Qf3+ {[%emt 0:00:03]} 38. Kh3 $1 {[%emt 0:00:05]} Qf5+ {[%emt 0:03:16]} 39. g4 {[%emt 0:00:05]} Qf4 {[%emt 0:00:37]} 40. Rxd5 {[%emt 0:03:26]} Qe3+ {[%emt 0:00:52]} 41. Kg2 {[%emt 0:00:07]} Qxc1 {[%emt 0:00:39]} 42. Qxc1 {[%emt 0:00:04]} ({Not} 42. Bxe4 Qxd1 43. Rxd1 Rd8 $18) 42... Bxc1 {[%emt 0:00:02]} 43. Bxe4 {[%emt 0:00:04]} g5 {[%emt 0:00:40]} (43... Re8 $142 44. Bg6 Rb8) 44. Rd7 {[%emt 0:00:52]} Rc8 {[%emt 0:00:37]} 45. Rxb7 {[%emt 0:00:14] Weighted Error Value: White=0.32/Black=0.40} 1-0

[Event "XLIX Sevilla Open 2024"]
[Site "?"]
[Date "2024.01.15"]
[Round "4.9"]
[White "Druska, Juraj"]
[Black "Iugina, Mariia"]
[Result "1-0"]
[ECO "C16"]
[WhiteElo "2468"]
[BlackElo "2043"]
[Annotator "TA"]
[PlyCount "93"]
[EventDate "2024.01.12"]
[EventType "swiss"]
[SourceTitle "playchess.com"]
[Source "ChessBase"]
[SourceQuality "1"]
[TimeControl "5400+30"]

{[%evp 9,93,20,24,10,38,35,64,44,91,87,115,115,133,141,127,121,135,89,139,86,75,75,75,0,0,0,77,73,95,82,133,133,128,130,147,103,161,52,82,71,181,172,168,175,205,208,216,221,208,162,262,174,175,183,316,316,274,203,325,270,270,251,384,389,371,331,529,548,536,433,493,464,830,832,966,881,1245,1181,1275,1267,2468,2413,3196,3038,2128,2005]} 1. e4 {[%emt 0:00:02]} e6 {[%emt 0:03:59]} 2. d4 {[%emt 0:00:20]} d5 {[%emt 0:00:20]} 3. Nc3 {[%emt 0:00:17]} Bb4 {[%emt 0:00:27]} 4. e5 {[%emt 0:00:25]} b6 {[%emt 0:00:18]} 5. h4 {[%emt 0:00:34]} h6 {[%emt 0:06:52]} 6. h5 {[%emt 0:00:10] C16: French: 3 Nc3 Bb4 4 e5: Lines without ...c5.} Qd7 {[%emt 0:03:09]} 7. Qg4 {[%emt 0:00:16]} Bf8 {[%emt 0:01:05]} 8. b4 {[%emt 0:01:56] White is slightly better.} Nc6 {[%emt 0:19:12]} (8... Bxb4 9. Qxg7 Bxc3+ 10. Bd2 Bxa1 11. Qxh8 $18) (8... f5 $14 9. Qg6+ Qf7) 9. a3 $16 {[%emt 0:03:42]} Bb7 {[%emt 0:02:19]} 10. Nf3 {[%emt 0:03:01]} O-O-O {[%emt 0:01:36]} 11. Bd3 {[%emt 0:02:20]} Nge7 {[%emt 0:04:09]} 12. Ne2 {[%emt 0:04:31] [#]} Re8 $146 {[%emt 0:04:47]} ({Predecessor:} 12... Kb8 13. Nf4 Nf5 14. c3 Nce7 15. Qh3 Nc8 16. a4 Rg8 17. g4 Nfe7 18. Qf1 Nc6 {1-0 Boleslavsky,I-Yukhtman,J Moscow 1956}) 13. Qf4 {[%emt 0:11:53]} ({White should play} 13. c3) 13... Nd8 {[%emt 0:02:54]} (13... g5 $142 14. hxg6 (14. Qxf7 Nd8 $11) 14... Nxg6) 14. g4 {[%emt 0:00:45] Black is weak on the dark squares} (14. a4 $142) 14... Kb8 {[%emt 0:06:04]} 15. Rb1 {[%emt 0:06:31]} Rg8 {[%emt 0:05:48]} 16. Bh7 {[%emt 0:03:11]} Rh8 {[%emt 0:03:32]} 17. Bd3 {[%emt 0:00:02]} Rg8 $1 {[%emt 0:00:08]} 18. Qg3 {[%emt 0:04:07]} Ka8 {[%emt 0:12:44]} 19. Be3 {[%emt 0:10:27]} Bc6 {[%emt 0:01:18]} (19... f6 $142) 20. b5 {[%emt 0:00:44]} Bb7 {[%emt 0:00:05]} 21. a4 {[%emt 0:00:20]} c6 {[%emt 0:03:47]} 22. c3 {[%emt 0:02:00] White has more active pieces.} f6 {[%emt 0:05:25]} (22... Bc8 $16 {might work better.} 23. Nd2 Nb7) 23. Nh4 {[%emt 0:08:08]} (23. Ra1 $18) 23... fxe5 {[%emt 0:01:10]} 24. dxe5 {[%emt 0:00:01] Threatens to win with 0-0. White now steadily converts the win.} c5 {[%emt 0:00:53]} (24... cxb5 $16 {keeps fighting.} 25. Bxb5 Bc6) 25. O-O $18 {[%emt 0:00:25]} Nf7 {[%emt 0:01:00]} 26. f4 {[%emt 0:00:37]} d4 {[%emt 0:06:14]} 27. cxd4 {[%emt 0:00:16]} Nd5 {[%emt 0:00:09]} 28. Bf2 {[%emt 0:01:35]} cxd4 {[%emt 0:00:28]} 29. Nxd4 {[%emt 0:02:18][%cal Oa4a5] a5! would be deadly.} (29. Bxd4 Rc8 $16) 29... Nc3 {[%emt 0:01:10]} (29... Bc5 $142) 30. Rbe1 {[%emt 0:00:54][%cal Od4c6] Strongly threatening Nc6!} Bc5 {[%emt 0:00:27]} 31. Nc6 {[%emt 0:00:32]} Bxf2+ {[%emt 0:00:34]} (31... Bxc6 $142 32. Bh7 (32. bxc6 Qxc6 33. Bg6 Re7 $16) 32... Bb7 33. Qxc3 Rc8) 32. Rxf2 {[%emt 0:00:01]} Nd8 {[%emt 0:01:25]} (32... Bxc6 $2 33. bxc6 (33. Bh7 Bd5 $16) 33... Qc7 34. Bb5 $18) 33. Bf1 {[%emt 0:12:44]} Nd5 {[%emt 0:00:18]} (33... Nxc6 $142 34. Qxc3 Nd4) 34. a5 {[%emt 0:00:02][%cal Ba4a5,Ba5a6][%mdl 32] Hoping for Nxd8.} Nxc6 {[%emt 0:00:27]} 35. a6 {[%emt 0:00:01]} ({Much less strong is} 35. bxc6 $6 Qxc6 36. a6 Bc8 $18) 35... Bc8 {[%emt 0:00:51]} (35... Ncb4 {was necessary.} 36. axb7+ Kxb7) 36. bxc6 {[%emt 0:00:02]} Qxc6 {[%emt 0:00:56]} 37. f5 {[%emt 0:00:01]} Kb8 {[%emt 0:00:50]} (37... Qa4 $142 38. Ng6 Bxa6 39. Bxa6 Qxa6) 38. Ng6 {[%emt 0:06:24] White is clearly winning.} Qc7 {[%emt 0:00:21]} 39. Kh2 {[%emt 0:01:05]} Rd8 {[%emt 0:01:13]} 40. f6 {[%emt 0:00:29]} gxf6 {[%emt 0:00:40]} (40... Nb4 $142 41. f7 Rgf8 42. Nxf8 Rxf8) 41. exf6 {[%emt 0:00:01][%cal Be5f6,Bf6f7][%mdl 32]} Qxg3+ {[%emt 0:00:47]} 42. Kxg3 {[%emt 0:00:02]} Rgf8 {[%emt 0:00:24]} 43. f7 {[%emt 0:01:41]} Kc7 {[%emt 0:00:35]} 44. Bc4 {[%emt 0:00:44]} Bd7 {[%emt 0:00:43]} 45. Bxd5 {[%emt 0:02:09]} exd5 {[%emt 0:00:05]} 46. Nxf8 {[%emt 0:00:08]} Rxf8 {[%emt 0:00:04] [#]} 47. g5 $1 {[%emt 0:00:05] Weighted Error Value: White=0.25 (precise) /Black=0.47} 1-0

[Event "XLIX Sevilla Open 2024"]
[Site "?"]
[Date "2024.01.15"]
[Round "4.10"]
[White "Midoux, Sebastien"]
[Black "Pap, Misa"]
[Result "1-0"]
[ECO "B31"]
[WhiteElo "2123"]
[BlackElo "2422"]
[Annotator "TA"]
[PlyCount "141"]
[EventDate "2024.01.12"]
[EventType "swiss"]
[SourceTitle "playchess.com"]
[Source "ChessBase"]
[SourceQuality "1"]
[TimeControl "5400+30"]

{[%evp 11,141,-1,13,19,9,10,25,23,34,19,35,14,19,25,23,-55,-50,-56,0,-8,-10,-2,137,132,137,29,49,78,57,0,52,50,138,152,137,136,162,127,129,130,145,111,122,-12,-12,-12,0,0,0,-31,0,-34,-37,-41,-37,-260,-38,-38,-38,-38,-38,-38,-38,-38,-37,-37,-37,-38,-37,-38,-37,-38,-37,-38,-37,-37,-37,-38,-38,-38,0,-38,-37,-37,-26,-40,-8,-8,-8,-8,0,-8,-8,-8,-8,-8,-8,-8,-8,-8,-8,-8,-8,-8,0,0,29987,29988,29988,29989,29989,29990,29990,29986,29987,29988,29987,29988,29988,29989,29991,29992,29991,29992,29994,29995,29995,29996,29996,29997,29997,29998]} 1. e4 {[%emt 0:02:17]} c5 {[%emt 0:00:18]} 2. Nf3 {[%emt 0:00:17]} Nc6 {[%emt 0:00:14]} 3. Bb5 {[%emt 0:00:27]} g6 {[%emt 0:00:08]} 4. Bxc6 {[%emt 0:00:19]} bxc6 {[%emt 0:00:05]} 5. O-O {[%emt 0:02:03]} Bg7 {[%emt 0:00:04]} 6. c3 {[%emt 0:00:47]} Nh6 {[%emt 0:07:45]} 7. d4 {[%emt 0:02:13] B31: Sicilian: 2...Nc6 3 Bb5 g6.} cxd4 {[%emt 0:00:05]} 8. cxd4 {[%emt 0:00:04]} d5 {[%emt 0:00:51]} 9. Qa4 {[%emt 0:15:59] White has an edge.} Bd7 {[%emt 0:03:28]} 10. Ne5 {[%emt 0:06:04]} dxe4 {[%emt 0:00:44] [#]} 11. Bxh6 $146 {[%emt 0:11:20]} (11. Nxc6 Qc7 12. d5 Ng4 $17) ({Predecessor:} 11. Nc3 Nf5 12. Nxe4 O-O 13. Nc5 Be8 14. Be3 Qd5 15. Nf3 e5 16. Rad1 exd4 17. Na6 {0-1 Le Gallo,F (1959)-Wirig,A (2408) Rohde op 04th 2004 (5)}) 11... Bxh6 {[%emt 0:00:10]} 12. Nc3 {[%emt 0:00:08]} (12. Nxc6 Qb6 13. d5 Rc8 $17) 12... O-O {[%emt 0:20:27]} 13. Nxd7 {[%emt 0:15:03]} (13. Nxe4 $11 Bf4 14. Rfe1 (14. Nxc6 Bxh2+ {[%mdl 64] Decoy} 15. Kxh2 Qc7+ 16. Kg1 Bxc6 $15)) 13... Qxd7 $15 {[%emt 0:00:07]} 14. d5 {[%emt 0:00:09]} f5 {[%emt 0:16:14]} (14... e3 $15 {is superior.}) 15. dxc6 $11 {[%emt 0:02:37]} Qe6 {[%emt 0:01:17] Dodges Qc4} 16. Rad1 {[%emt 0:01:16]} Bf4 {[%emt 0:15:13]} (16... Rfc8 $11 {remains equal.}) 17. Nd5 $36 {[%emt 0:08:49][%mdl 2048] White is in control.} Bd6 {[%emt 0:00:05]} 18. f4 {[%emt 0:00:15] Repels Qe5} (18. b4 $16) 18... exf3 {[%emt 0:06:02]} 19. Rxf3 {[%emt 0:04:51]} Qe5 {[%emt 0:07:24][%csl LRb2,LRh2]} 20. Qh4 {[%emt 0:00:47] Active counter play!} (20. Qc4 $14) 20... Rf7 {[%emt 0:05:43]} (20... e6 $11 21. Rh3 Rf7 22. Nf6+ Qxf6 23. Qxf6 (23. Rxd6 Qxb2 24. Rxe6 f4 $11) 23... Bc5+ 24. Qd4 Bxd4+ 25. Rxd4 Rc7) 21. b4 $1 $14 {[%emt 0:00:54][%cal Bb2b4,Bb4b5][%mdl 32]} Rc8 {[%emt 0:02:40]} ({Black should play} 21... g5 $14 22. Qh5 (22. Qxg5+ Rg7 $11) 22... Qe2) 22. Re3 $16 {[%emt 0:02:15][%mdl 64] Skewer} Qg7 {[%emt 0:00:19]} 23. Qc4 {[%emt 0:00:09] Black is weak on the light squares} Kh8 {[%emt 0:00:33]} 24. b5 {[%emt 0:04:00]} f4 {[%emt 0:01:05]} 25. Re6 {[%emt 0:03:32]} f3 {[%emt 0:00:22] Against Qe2} 26. gxf3 {[%emt 0:07:26]} Rxf3 {[%emt 0:01:41][%cal Od6h2] [#]} 27. Rxd6 {[%emt 0:00:53]} exd6 $11 {[%emt 0:00:23]} 28. Qd4 $1 {[%emt 0:00:04]} Qxd4+ {[%emt 0:01:10]} 29. Rxd4 {[%emt 0:00:02][%mdl 4096] Endgame KRR-KRN} Rcf8 {[%emt 0:00:59]} 30. Rd2 {[%emt 0:05:43]} Rf1+ {[%emt 0:00:05]} 31. Kg2 {[%emt 0:00:04]} Rc1 {[%emt 0:00:10]} 32. a4 {[%emt 0:01:50]} Rc5 {[%emt 0:06:57]} 33. c7 $2 {[%emt 0:01:36] [#]} (33. h4 $15) 33... Kg7 $2 {[%emt 0:00:27]} (33... Rc8 $1 $19 {...Kg7 is the strong threat.} 34. h4 Kg7) 34. a5 $1 $15 {[%emt 0:02:35] Black must now prevent b6.} Rxb5 {[%emt 0:00:12]} 35. Ne7 {[%emt 0:00:04] Dodges Rc8} Rg5+ {[%emt 0:00:14]} ({Don't play} 35... Rxa5 36. c8=Q Rxc8 37. Nxc8 $16) (35... Rc5 {simplifies} 36. c8=Q Rcxc8 37. Nxc8 Rxc8 38. Rxd6 Rc7) 36. Kh3 {[%emt 0:00:17]} Rc5 {[%emt 0:00:20]} ({But not} 36... Rxa5 37. c8=Q Ra3+ 38. Kg2 Rxc8 39. Nxc8 $16) (36... Rh5+ {with more complications.} 37. Kg3 Rc5 38. c8=Q Rfxc8 39. Nxc8 Rxc8 40. Rxd6 Rc3+) 37. c8=Q {[%emt 0:00:10]} Rfxc8 {[%emt 0:00:03]} (37... Rcxc8 {simplifies} 38. Nxc8 Rxc8 39. Rxd6 Rc3+) 38. Nxc8 {[%emt 0:00:11]} Rxc8 {[%emt 0:00:02]} 39. Rxd6 {[%emt 0:00:13] KR-KR} Rc7 {[%emt 0:00:19]} 40. Kg4 {[%emt 0:01:31]} Kh6 {[%emt 0:00:39]} 41. Ra6 {[%emt 0:00:30]} Rf7 {[%emt 0:00:20]} 42. Rd6 {[%emt 0:01:05]} Rb7 {[%emt 0:00:12]} 43. Ra6 {[%emt 0:00:16]} Rc7 {[%emt 0:00:01]} 44. Rd6 {[%emt 0:00:12]} Rc4+ {[%emt 0:00:08]} 45. Kg3 {[%emt 0:00:11]} Rc7 {[%emt 0:01:42]} 46. Kg4 {[%emt 0:00:06]} Kg7 {[%emt 0:00:05]} 47. Ra6 {[%emt 0:00:22]} Kf7 {[%emt 0:00:14]} 48. Kg5 {[%emt 0:00:28]} Ke8 {[%emt 0:00:22]} 49. Kh6 {[%emt 0:00:47]} Kd8 {[%emt 0:02:55]} 50. Rf6 {[%emt 0:01:00]} Kc8 {[%emt 0:00:42]} 51. Rd6 {[%emt 0:00:32]} Re7 {[%emt 0:00:16]} 52. Rc6+ {[%emt 0:00:32]} Kb7 {[%emt 0:00:42]} 53. Rf6 {[%emt 0:00:13]} Re2 {[%emt 0:00:55]} 54. a6+ {[%emt 0:01:22]} Kc7 {[%emt 0:00:03]} 55. Kxh7 {[%emt 0:00:03]} Rxh2+ {[%emt 0:00:04]} 56. Kxg6 {[%emt 0:00:04]} Re2 {[%emt 0:00:05]} 57. Kg5 {[%emt 0:00:18]} Rb2 {[%emt 0:00:20]} 58. Rf7+ {[%emt 0:00:39]} Kb6 $2 {[%emt 0:00:04][%mdl 8192]} (58... Kb8 $11) 59. Rb7+ {[%emt 0:00:04][%mdl 64] Skewer. White mates.} Kxa6 {[%emt 0:00:14]} 60. Rxb2 {[%emt 0:00:01] KR-KP} Ka5 {[%emt 0:00:08]} 61. Kf4 {[%emt 0:00:06]} Ka4 {[%emt 0:00:02]} 62. Ra2+ {[%emt 0:00:05]} Kb3 {[%emt 0:00:04]} 63. Rxa7 {[%emt 0:00:03] KR-K} Kc4 {[%emt 0:00:03]} 64. Rd7 {[%emt 0:00:12]} Kc5 {[%emt 0:00:04]} 65. Ke5 {[%emt 0:00:08]} Kc6 {[%emt 0:00:03]} 66. Rd5 {[%emt 0:00:06]} Kc7 {[%emt 0:00:03]} 67. Rc5+ {[%emt 0:00:12]} Kb6 {[%emt 0:00:03]} 68. Kd6 {[%emt 0:00:05]} Kb7 {[%emt 0:00:03]} 69. Rb5+ {[%emt 0:00:04]} Ka6 {[%emt 0:00:01]} 70. Kc6 {[%emt 0:00:09]} Ka7 {[%emt 0:00:03]} 71. Rb1 {[%emt 0:00:03] Weighted Error Value: White=0.22 (precise) /Black=0.27 (precise)} 1-0